[Event "Championnat d'Europe Rapide"]
[Date "2024.12.07"]
[White "Motylev, Alexander"]
[Black "Savanovic, Aleksandar"]
[WhiteElo "2596"]
[BlackElo "2354"]
[Round "3.6"]
[Result "1-0"]
[TimeControl "900+10"]

1. e4 {[%emt 00:00:02] [%clk 00:15:17]} e5 {[%emt 00:00:02] [%clk 00:15:18]} 2.
Nf3 {[%emt 00:00:02] [%clk 00:15:25]} Nc6 {[%emt 00:00:04] [%clk 00:15:24]} 3.
d4 {[%emt 00:00:02] [%clk 00:15:33]} exd4 {[%emt 00:00:06] [%clk 00:15:29]} 4.
Nxd4 {[%clk 00:15:41]} Nf6 {[%emt 00:00:07] [%clk 00:15:33]} 5. Nxc6 {[%emt
00:00:02] [%clk 00:15:48]} bxc6 {[%emt 00:00:02] [%clk 00:15:41]} 6. e5 {[%emt
00:00:03] [%clk 00:15:55]} Qe7 {[%emt 00:00:08] [%clk 00:15:43]} 7. Qe2 {[%emt
00:00:01] [%clk 00:16:03]} Nd5 {[%emt 00:00:05] [%clk 00:15:49]} 8. Nd2 {[%emt
00:00:03] [%clk 00:16:10]} a5 {[%emt 00:00:49] [%clk 00:15:11]} 9. g3 {[%emt
00:00:30] [%clk 00:15:49]} f6 {[%emt 00:01:37] [%clk 00:13:44]} 10. c4 {[%emt
00:01:37] [%clk 00:14:22]} Ba6 {[%emt 00:01:31] [%clk 00:12:22]} 11. Bg2 {[%emt
00:00:35] [%clk 00:13:58]} fxe5 {[%emt 00:00:36] [%clk 00:11:57]} 12. O-O {[%emt
00:00:03] [%clk 00:14:05]} Nf6 {[%emt 00:02:29] [%clk 00:09:37]} 13. Re1 {[%emt
00:00:21] [%clk 00:13:54]} Bb7 {[%emt 00:00:13] [%clk 00:09:34]} 14. Qxe5 {[%emt
00:01:23] [%clk 00:12:41]} Qxe5 {[%emt 00:00:05] [%clk 00:09:39]} 15. Rxe5+
{[%emt 00:00:02] [%clk 00:12:50]} Kf7 {[%emt 00:00:43] [%clk 00:09:06]} 16. Nf3
{[%emt 00:00:11] [%clk 00:12:48]} Bd6 {[%emt 00:00:09] [%clk 00:09:07]} 17. Re1
{[%emt 00:02:28] [%clk 00:10:30]} Rhe8 {[%emt 00:00:10] [%clk 00:09:08]} 18. Be3
{[%clk 00:10:38]} h6 {[%emt 00:03:11] [%clk 00:06:06]} 19. c5 {[%emt 00:01:44]
[%clk 00:09:04]} Bf8 {[%emt 00:00:07] [%clk 00:06:10]} 20. Rac1 {[%emt 00:01:03]
[%clk 00:08:11]} Nd5 {[%emt 00:01:38] [%clk 00:04:42]} 21. Bd4 {[%emt 00:01:41]
[%clk 00:06:40]} d6 {[%emt 00:00:43] [%clk 00:04:09]} 22. Red1 {[%emt 00:01:01]
[%clk 00:05:50]} a4 {[%emt 00:00:48] [%clk 00:03:31]} 23. a3 {[%emt 00:00:52]
[%clk 00:05:07]} Rab8 {[%emt 00:01:30] [%clk 00:02:11]} 24. Nd2 {[%emt 00:00:49]
[%clk 00:04:28]} Ba8 {[%emt 00:00:59] [%clk 00:01:23]} 25. Ne4 {[%emt 00:00:20]
[%clk 00:04:18]} Rb5 {[%emt 00:00:43] [%clk 00:00:49]} 26. Rd2 {[%emt 00:01:53]
[%clk 00:02:34]} Bb7 {[%emt 00:00:32] [%clk 00:00:28]} 27. h4 {[%emt 00:00:09]
[%clk 00:02:35]} dxc5 {[%emt 00:00:25] [%clk 00:00:14]} 28. Nxc5 {[%emt
00:00:17] [%clk 00:02:27]} Bxc5 {[%emt 00:00:02] [%clk 00:00:22]} 29. Bxc5
{[%emt 00:00:15] [%clk 00:02:22]} Re6 {[%emt 00:00:11] [%clk 00:00:21]} 30. Bh3
{[%emt 00:00:31] [%clk 00:02:01]} Rf6 {[%emt 00:00:11] [%clk 00:00:21]} 31. Bg4
{[%emt 00:00:59] [%clk 00:01:12]} g6 {[%emt 00:00:03] [%clk 00:00:28]} 32. Bd1
{[%emt 00:00:19] [%clk 00:01:02]} Ra5 {[%emt 00:00:03] [%clk 00:00:35]} 33. Rd4
{[%emt 00:00:02] [%clk 00:01:10]} Rf5 {[%emt 00:00:04] [%clk 00:00:41]} 34. Bxa4
{[%emt 00:00:35] [%clk 00:00:45]} Re5 {[%emt 00:00:21] [%clk 00:00:30]} 35. Bb3
{[%emt 00:00:17] [%clk 00:00:38]} Ke8 {[%emt 00:00:04] [%clk 00:00:36]} 36. Bb4
{[%emt 00:00:29] [%clk 00:00:20]} Nxb4 {[%emt 00:00:02] [%clk 00:00:44]} 37.
Rxb4 {[%emt 00:00:05] [%clk 00:00:24]} Rab5 {[%emt 00:00:02] [%clk 00:00:52]}
38. Rxb5 {[%emt 00:00:09] [%clk 00:00:26]} cxb5 {[%emt 00:00:08] [%clk
00:00:54]} 39. Kf1 {[%emt 00:00:11] [%clk 00:00:24]} c5 {[%emt 00:00:04] [%clk
00:01:00]} 40. f4 {[%emt 00:00:08] [%clk 00:00:26]} Re3 {[%emt 00:00:04] [%clk
00:01:06]} 41. Re1 {[%emt 00:00:01] [%clk 00:00:34]} Rxe1+ {[%emt 00:00:03]
[%clk 00:01:14]} 42. Kxe1 {[%clk 00:00:43]} Ke7 {[%emt 00:00:02] [%clk
00:01:24]} 43. Kd2 {[%emt 00:00:09] [%clk 00:00:43]} Kf6 {[%emt 00:00:05] [%clk
00:01:29]} 44. Ke3 {[%emt 00:00:02] [%clk 00:00:52]} Bc6 {[%emt 00:00:03] [%clk
00:01:36]} 45. Bc2 {[%emt 00:00:06] [%clk 00:00:55]} Be8 {[%emt 00:00:01] [%clk
00:01:45]} 46. b4 {[%emt 00:00:08] [%clk 00:00:57]} c4 {[%emt 00:00:04] [%clk
00:01:51]} 47. Kd4 {[%emt 00:00:12] [%clk 00:00:55]} g5 {[%emt 00:00:04] [%clk
00:01:57]} 48. a4 {[%emt 00:00:23] [%clk 00:00:43]} bxa4 {[%emt 00:00:03] [%clk
00:02:04]} 49. Kxc4 {[%emt 00:00:02] [%clk 00:00:51]} gxf4 {[%emt 00:00:06]
[%clk 00:02:08]} 50. gxf4 {[%emt 00:00:01] [%clk 00:00:59]} Bf7+ {[%emt
00:00:04] [%clk 00:02:14]} 51. Kc3 {[%clk 00:01:08]} Ke7 {[%emt 00:00:04] [%clk
00:02:20]} 52. Bxa4 {[%emt 00:00:08] [%clk 00:01:10]} 1-0

[Site "Europe Echecs"]

[Event "Championnat d'Europe Rapide"]
[Date "2024.12.07"]
[White "Papasimakopoulos, Alexandros"]
[Black "Jobava, Baadur"]
[WhiteElo "2379"]
[BlackElo "2578"]
[Round "3.7"]
[Result "0-1"]
[TimeControl "900+10"]

1. d4 {[%emt 00:00:04] [%clk 00:15:17]} d5 {[%emt 00:00:05] [%clk 00:15:15]} 2.
c4 {[%emt 00:00:02] [%clk 00:15:26]} dxc4 {[%emt 00:00:02] [%clk 00:15:23]} 3.
Nf3 {[%emt 00:00:03] [%clk 00:15:32]} Nf6 {[%emt 00:00:02] [%clk 00:15:32]} 4.
e3 {[%emt 00:00:01] [%clk 00:15:40]} Bg4 {[%emt 00:00:02] [%clk 00:15:40]} 5.
Bxc4 {[%emt 00:00:05] [%clk 00:15:45]} e6 {[%emt 00:00:01] [%clk 00:15:49]} 6.
Nbd2 {[%emt 00:00:09] [%clk 00:15:47]} Nbd7 {[%emt 00:00:06] [%clk 00:15:53]} 7.
h3 {[%emt 00:00:04] [%clk 00:15:53]} Bh5 {[%emt 00:00:01] [%clk 00:16:01]} 8.
Qb3 {[%emt 00:00:16] [%clk 00:15:47]} Rb8 {[%emt 00:01:07] [%clk 00:15:04]} 9.
O-O {[%emt 00:00:03] [%clk 00:15:54]} Be7 {[%emt 00:01:22] [%clk 00:13:53]} 10.
Re1 {[%emt 00:01:23] [%clk 00:14:39]} O-O {[%emt 00:00:31] [%clk 00:13:33]} 11.
e4 {[%emt 00:00:49] [%clk 00:14:00]} b5 {[%emt 00:01:06] [%clk 00:12:37]} 12.
Bf1 {[%emt 00:00:19] [%clk 00:13:50]} c5 {[%emt 00:00:05] [%clk 00:12:43]} 13.
dxc5 {[%emt 00:00:27] [%clk 00:13:33]} Nxc5 {[%emt 00:00:45] [%clk 00:12:08]}
14. Qe3 {[%emt 00:00:02] [%clk 00:13:41]} Qc7 {[%emt 00:01:20] [%clk 00:10:58]}
15. Nd4 {[%emt 00:00:48] [%clk 00:13:03]} a6 {[%emt 00:00:02] [%clk 00:11:07]}
16. b3 {[%emt 00:01:38] [%clk 00:11:34]} Bg6 {[%emt 00:00:39] [%clk 00:10:38]}
17. Bb2 {[%emt 00:02:00] [%clk 00:09:45]} Ncxe4 {[%emt 00:04:45] [%clk
00:06:02]} 18. Rac1 {[%emt 00:00:02] [%clk 00:09:52]} Qb7 {[%emt 00:00:40] [%clk
00:05:32]} 19. Nc6 {[%emt 00:01:24] [%clk 00:08:38]} Nd5 {[%emt 00:00:43] [%clk
00:05:00]} 20. Nxe7+ {[%emt 00:00:41] [%clk 00:08:07]} Qxe7 {[%emt 00:00:04]
[%clk 00:05:05]} 21. Qd4 {[%emt 00:00:24] [%clk 00:07:52]} Nef6 {[%emt 00:00:02]
[%clk 00:05:14]} 22. Nf3 {[%emt 00:00:22] [%clk 00:07:40]} Rfc8 {[%emt 00:02:22]
[%clk 00:03:02]} 23. Ne5 {[%emt 00:00:12] [%clk 00:07:38]} Qb7 {[%emt 00:00:07]
[%clk 00:03:05]} 24. Ng4 {[%emt 00:00:38] [%clk 00:07:09]} h5 {[%emt 00:00:57]
[%clk 00:02:19]} 25. Nxf6+ {[%emt 00:00:07] [%clk 00:07:12]} Nxf6 {[%emt
00:00:09] [%clk 00:02:20]} 26. Qh4 {[%emt 00:00:15] [%clk 00:07:07]} Ne8 {[%emt
00:00:56] [%clk 00:01:34]} 27. Be2 {[%emt 00:00:15] [%clk 00:07:02]} Rxc1 {[%emt
00:00:10] [%clk 00:01:34]} 28. Rxc1 {[%emt 00:00:02] [%clk 00:07:10]} Rc8 {[%emt
00:00:02] [%clk 00:01:43]} 29. Bxh5 {[%emt 00:02:37] [%clk 00:04:42]} Rxc1+
{[%emt 00:00:02] [%clk 00:01:51]} 30. Bxc1 {[%emt 00:00:01] [%clk 00:04:51]}
Bxh5 {[%emt 00:00:02] [%clk 00:01:59]} 31. Qxh5 {[%emt 00:00:02] [%clk
00:04:59]} Qe4 {[%emt 00:00:01] [%clk 00:02:08]} 32. Qc5 {[%emt 00:00:14] [%clk
00:04:55]} Nf6 {[%emt 00:00:10] [%clk 00:02:08]} 33. Kh2 {[%emt 00:00:25] [%clk
00:04:40]} Qb1 {[%emt 00:00:20] [%clk 00:01:58]} 34. Qc3 {[%emt 00:01:58] [%clk
00:02:52]} Qxa2 {[%emt 00:00:19] [%clk 00:01:50]} 35. Bb2 {[%emt 00:00:01] [%clk
00:03:01]} Qb1 {[%emt 00:01:00] [%clk 00:01:00]} 36. f3 {[%emt 00:00:14] [%clk
00:02:57]} Kh7 {[%emt 00:00:25] [%clk 00:00:45]} 37. g4 {[%emt 00:00:11] [%clk
00:02:55]} b4 {[%emt 00:00:07] [%clk 00:00:49]} 38. Qd2 {[%emt 00:00:16] [%clk
00:02:48]} Nd5 {[%emt 00:00:17] [%clk 00:00:42]} 39. h4 {[%emt 00:00:08] [%clk
00:02:50]} Qf1 {[%emt 00:00:23] [%clk 00:00:29]} 40. Kg3 {[%emt 00:01:18] [%clk
00:01:42]} Qg1+ {[%emt 00:00:02] [%clk 00:00:38]} 41. Kh3 {[%emt 00:00:02] [%clk
00:01:49]} Qh1+ {[%emt 00:00:02] [%clk 00:00:47]} 42. Kg3 {[%clk 00:01:58]} Qg1+
{[%emt 00:00:01] [%clk 00:00:56]} 43. Kh3 {[%clk 00:02:08]} Ne3 {[%emt 00:00:09]
[%clk 00:00:57]} 44. Qd3+ {[%emt 00:00:37] [%clk 00:01:41]} f5 {[%emt 00:00:08]
[%clk 00:00:58]} 45. Qe2 {[%emt 00:00:08] [%clk 00:01:44]} Nf1 {[%emt 00:00:27]
[%clk 00:00:41]} 46. Be5 {[%emt 00:00:07] [%clk 00:01:47]} Qh1+ {[%emt 00:00:02]
[%clk 00:00:49]} 47. Bh2 {[%emt 00:00:07] [%clk 00:01:49]} Nxh2 {[%emt 00:00:02]
[%clk 00:00:57]} 48. Qxh2 {[%emt 00:00:13] [%clk 00:01:46]} Qxf3+ {[%emt
00:00:02] [%clk 00:01:05]} 49. Qg3 {[%emt 00:00:02] [%clk 00:01:55]} Qh1+ {[%clk
00:01:13]} 0-1

[Site "Europe Echecs"]

[Event "Championnat d'Europe Rapide"]
[Date "2024.12.07"]
[White "Stefanova, Antoaneta"]
[Black "Safarli, Eltaj"]
[WhiteElo "2418"]
[BlackElo "2610"]
[Round "3.8"]
[Result "0-1"]
[TimeControl "900+10"]

1. d4 {[%emt 00:00:05] [%clk 00:15:15]} Nf6 {[%emt 00:00:03] [%clk 00:15:18]} 2.
Nf3 {[%emt 00:00:01] [%clk 00:15:24]} g6 {[%emt 00:00:03] [%clk 00:15:25]} 3. g3
{[%emt 00:00:04] [%clk 00:15:30]} Bg7 {[%emt 00:00:01] [%clk 00:15:33]} 4. Bg2
{[%clk 00:15:40]} O-O {[%emt 00:00:02] [%clk 00:15:41]} 5. O-O {[%clk 00:15:50]}
d5 {[%emt 00:00:03] [%clk 00:15:49]} 6. Be3 {[%emt 00:00:28] [%clk 00:15:32]}
Bf5 {[%emt 00:00:15] [%clk 00:15:44]} 7. Qc1 {[%emt 00:00:28] [%clk 00:15:13]}
Nbd7 {[%emt 00:00:14] [%clk 00:15:40]} 8. Nh4 {[%emt 00:00:50] [%clk 00:14:32]}
Be6 {[%emt 00:00:15] [%clk 00:15:36]} 9. Rd1 {[%emt 00:01:05] [%clk 00:13:37]}
Rc8 {[%emt 00:00:31] [%clk 00:15:15]} 10. c4 {[%emt 00:02:43] [%clk 00:11:04]}
c6 {[%emt 00:00:31] [%clk 00:14:55]} 11. c5 {[%emt 00:01:19] [%clk 00:09:55]}
Qa5 {[%emt 00:03:29] [%clk 00:11:35]} 12. Bd2 {[%emt 00:02:10] [%clk 00:07:56]}
Qa6 {[%emt 00:00:13] [%clk 00:11:31]} 13. Nc3 {[%emt 00:00:44] [%clk 00:07:23]}
Ne4 {[%emt 00:00:04] [%clk 00:11:36]} 14. Nxe4 {[%emt 00:02:34] [%clk 00:04:59]}
dxe4 {[%emt 00:00:02] [%clk 00:11:44]} 15. e3 {[%emt 00:01:04] [%clk 00:04:05]}
Bg4 {[%emt 00:01:11] [%clk 00:10:44]} 16. Re1 {[%emt 00:00:20] [%clk 00:03:55]}
b6 {[%emt 00:01:14] [%clk 00:09:40]} 17. Bxe4 {[%emt 00:01:10] [%clk 00:02:55]}
bxc5 {[%emt 00:00:32] [%clk 00:09:18]} 18. dxc5 {[%emt 00:00:18] [%clk
00:02:47]} Rfd8 {[%emt 00:00:03] [%clk 00:09:24]} 19. f3 {[%emt 00:01:27] [%clk
00:01:30]} Bh3 {[%emt 00:00:44] [%clk 00:08:51]} 20. Bb4 {[%emt 00:00:21] [%clk
00:01:18]} Qb5 {[%emt 00:00:26] [%clk 00:08:35]} 21. Ba3 {[%emt 00:00:24] [%clk
00:01:05]} Ne5 {[%emt 00:00:04] [%clk 00:08:40]} 22. Rb1 {[%emt 00:00:54] [%clk
00:00:22]} Nc4 {[%emt 00:00:40] [%clk 00:08:10]} 23. Qc2 {[%emt 00:00:17] [%clk
00:00:15]} f5 {[%emt 00:00:29] [%clk 00:07:50]} 24. Nxf5 {[%emt 00:00:08] [%clk
00:00:17]} gxf5 {[%emt 00:00:13] [%clk 00:07:47]} 25. Bxf5 {[%emt 00:00:01]
[%clk 00:00:26]} Bxf5 {[%emt 00:01:09] [%clk 00:06:47]} 26. Qxf5 {[%clk
00:00:35]} Kh8 {[%emt 00:00:03] [%clk 00:06:55]} 27. Rbd1 {[%emt 00:00:17] [%clk
00:00:29]} Nxe3 {[%emt 00:00:17] [%clk 00:06:47]} 28. Rxd8+ {[%emt 00:00:09]
[%clk 00:00:31]} Rxd8 {[%emt 00:00:02] [%clk 00:06:56]} 29. Qe4 {[%emt 00:00:10]
[%clk 00:00:30]} Nd5 {[%emt 00:00:36] [%clk 00:06:31]} 30. b3 {[%emt 00:00:09]
[%clk 00:00:31]} Qa5 {[%emt 00:00:05] [%clk 00:06:36]} 31. Bc1 {[%emt 00:00:11]
[%clk 00:00:30]} Qxa2 {[%emt 00:00:15] [%clk 00:06:31]} 32. Bg5 {[%emt 00:00:11]
[%clk 00:00:28]} Qxb3 {[%emt 00:00:07] [%clk 00:06:34]} 0-1

[Site "Europe Echecs"]

[Event "Championnat d'Europe Rapide"]
[Date "2024.12.07"]
[White "Korobov, Anton"]
[Black "Costachi, Mihnea"]
[WhiteElo "2629"]
[BlackElo "2464"]
[Round "3.9"]
[Result "1-0"]
[TimeControl "900+10"]

1. d4 {[%emt 00:00:01] [%clk 00:15:18]} Nf6 {[%emt 00:00:06] [%clk 00:15:14]} 2.
c4 {[%emt 00:00:02] [%clk 00:15:26]} g6 {[%emt 00:00:20] [%clk 00:15:05]} 3. Nc3
{[%emt 00:00:02] [%clk 00:15:33]} Bg7 {[%emt 00:00:02] [%clk 00:15:13]} 4. e4
{[%emt 00:00:01] [%clk 00:15:41]} d6 {[%emt 00:00:02] [%clk 00:15:21]} 5. Be2
{[%emt 00:00:18] [%clk 00:15:33]} O-O {[%emt 00:00:04] [%clk 00:15:27]} 6. Bg5
{[%emt 00:00:02] [%clk 00:15:41]} Na6 {[%emt 00:00:12] [%clk 00:15:26]} 7. Qd2
{[%emt 00:00:28] [%clk 00:15:23]} e5 {[%emt 00:00:29] [%clk 00:15:07]} 8. d5
{[%emt 00:00:02] [%clk 00:15:31]} Qe8 {[%emt 00:00:50] [%clk 00:14:27]} 9. f3
{[%emt 00:01:29] [%clk 00:14:12]} Nh5 {[%emt 00:00:47] [%clk 00:13:50]} 10. Bd1
{[%emt 00:00:02] [%clk 00:14:20]} f5 {[%emt 00:00:34] [%clk 00:13:26]} 11. Nge2
{[%emt 00:00:04] [%clk 00:14:26]} Bd7 {[%emt 00:00:39] [%clk 00:12:57]} 12. a3
{[%emt 00:00:24] [%clk 00:14:12]} f4 {[%emt 00:02:00] [%clk 00:11:06]} 13. b4
{[%emt 00:00:22] [%clk 00:14:00]} Bf6 {[%emt 00:00:17] [%clk 00:11:00]} 14. Bxf6
{[%emt 00:00:04] [%clk 00:14:06]} Rxf6 {[%emt 00:00:15] [%clk 00:10:55]} 15. Bb3
{[%emt 00:00:13] [%clk 00:14:02]} Kh8 {[%emt 00:00:34] [%clk 00:10:32]} 16.
O-O-O {[%emt 00:00:24] [%clk 00:13:46]} Nb8 {[%emt 00:02:20] [%clk 00:08:24]}
17. Kb2 {[%emt 00:00:20] [%clk 00:13:36]} a5 {[%emt 00:00:45] [%clk 00:07:49]}
18. Nc1 {[%emt 00:00:06] [%clk 00:13:39]} Na6 {[%emt 00:02:10] [%clk 00:05:50]}
19. Nd3 {[%emt 00:00:02] [%clk 00:13:46]} b5 {[%emt 00:00:16] [%clk 00:05:45]}
20. c5 {[%emt 00:01:01] [%clk 00:12:55]} c6 {[%emt 00:03:37] [%clk 00:02:19]}
21. dxc6 {[%emt 00:01:15] [%clk 00:11:50]} Bxc6 {[%emt 00:00:02] [%clk
00:02:26]} 22. Nd5 {[%emt 00:00:01] [%clk 00:11:58]} Bxd5 {[%emt 00:01:42] [%clk
00:00:55]} 23. Bxd5 {[%emt 00:00:02] [%clk 00:12:06]} Ra7 {[%emt 00:00:40] [%clk
00:00:26]} 24. Qc3 {[%emt 00:01:25] [%clk 00:10:51]} axb4 {[%emt 00:00:09] [%clk
00:00:27]} 25. axb4 {[%emt 00:00:01] [%clk 00:10:59]} dxc5 {[%emt 00:00:09]
[%clk 00:00:29]} 26. bxc5 {[%emt 00:00:12] [%clk 00:10:57]} b4 {[%emt 00:00:15]
[%clk 00:00:24]} 27. Qxe5 {[%emt 00:00:17] [%clk 00:10:49]} Qxe5+ {[%emt
00:00:18] [%clk 00:00:17]} 28. Nxe5 {[%emt 00:00:01] [%clk 00:10:57]} Nxc5
{[%clk 00:00:26]} 29. Ra1 {[%emt 00:00:16] [%clk 00:10:51]} Re7 {[%emt 00:00:23]
[%clk 00:00:13]} 30. Ra8+ {[%emt 00:00:06] [%clk 00:10:54]} Kg7 {[%emt 00:00:02]
[%clk 00:00:22]} 31. Rg8+ {[%emt 00:00:03] [%clk 00:11:01]} Kh6 {[%emt 00:00:03]
[%clk 00:00:29]} 32. Ng4+ {[%emt 00:00:02] [%clk 00:11:09]} Kg5 {[%emt 00:00:02]
[%clk 00:00:37]} 33. h4# {[%emt 00:00:02] [%clk 00:11:17]} 1-0

[Site "Europe Echecs"]

[Event "Championnat d'Europe Rapide"]
[Date "2024.12.07"]
[White "Vuckovic, Zarko"]
[Black "Pultinevicius, Paulius"]
[WhiteElo "2334"]
[BlackElo "2579"]
[Round "3.10"]
[Result "0-1"]
[TimeControl "900+10"]

1. e4 {[%clk 00:15:19]} c5 {[%emt 00:00:02] [%clk 00:15:18]} 2. Nf3 {[%emt
00:00:02] [%clk 00:15:27]} e6 {[%emt 00:00:01] [%clk 00:15:27]} 3. d4 {[%emt
00:00:01] [%clk 00:15:36]} cxd4 {[%emt 00:00:01] [%clk 00:15:36]} 4. Nxd4 {[%emt
00:00:01] [%clk 00:15:45]} Nc6 {[%emt 00:00:01] [%clk 00:15:45]} 5. Nc3 {[%emt
00:00:01] [%clk 00:15:54]} d6 {[%emt 00:00:01] [%clk 00:15:54]} 6. Be3 {[%emt
00:00:05] [%clk 00:15:58]} Nf6 {[%emt 00:00:02] [%clk 00:16:03]} 7. f4 {[%emt
00:00:01] [%clk 00:16:07]} Be7 {[%emt 00:00:05] [%clk 00:16:08]} 8. Qd2 {[%emt
00:00:06] [%clk 00:16:11]} O-O {[%emt 00:00:45] [%clk 00:15:33]} 9. O-O-O {[%emt
00:00:03] [%clk 00:16:19]} a6 {[%emt 00:02:02] [%clk 00:13:41]} 10. Be2 {[%emt
00:01:59] [%clk 00:14:29]} Nxd4 {[%emt 00:00:35] [%clk 00:13:17]} 11. Bxd4
{[%emt 00:00:04] [%clk 00:14:34]} b5 {[%emt 00:00:01] [%clk 00:13:27]} 12. Bf3
{[%emt 00:01:02] [%clk 00:13:42]} b4 {[%emt 00:02:39] [%clk 00:10:57]} 13. Ne2
{[%emt 00:00:03] [%clk 00:13:50]} a5 {[%emt 00:02:48] [%clk 00:08:19]} 14. Bxf6
{[%emt 00:01:49] [%clk 00:12:11]} gxf6 {[%emt 00:00:01] [%clk 00:08:26]} 15. e5
{[%emt 00:00:31] [%clk 00:11:51]} Ra6 {[%emt 00:00:28] [%clk 00:08:08]} 16. Qe3
{[%emt 00:00:41] [%clk 00:11:21]} fxe5 {[%emt 00:00:15] [%clk 00:08:03]} 17. Kb1
{[%emt 00:00:25] [%clk 00:11:06]} Qb6 {[%emt 00:00:08] [%clk 00:08:05]} 18. Qd3
{[%emt 00:00:16] [%clk 00:10:59]} f5 {[%emt 00:00:05] [%clk 00:08:11]} 19. fxe5
{[%emt 00:01:22] [%clk 00:09:47]} dxe5 {[%emt 00:00:01] [%clk 00:08:20]} 20.
Rhf1 {[%emt 00:00:19] [%clk 00:09:38]} Qc5 {[%emt 00:00:29] [%clk 00:08:00]} 21.
Bh5 {[%emt 00:01:12] [%clk 00:08:37]} Rd6 {[%emt 00:00:08] [%clk 00:08:03]} 22.
Qg3+ {[%emt 00:00:24] [%clk 00:08:22]} Kh8 {[%emt 00:00:01] [%clk 00:08:12]} 23.
Qh3 {[%emt 00:00:04] [%clk 00:08:28]} Rg8 {[%emt 00:00:37] [%clk 00:07:45]} 24.
Nc1 {[%emt 00:01:17] [%clk 00:07:21]} Bf6 {[%emt 00:00:07] [%clk 00:07:48]} 25.
Nb3 {[%emt 00:00:41] [%clk 00:06:49]} Qb6 {[%emt 00:00:06] [%clk 00:07:53]} 26.
Bf7 {[%emt 00:00:20] [%clk 00:06:39]} Rg7 {[%emt 00:00:52] [%clk 00:07:10]} 27.
Be8 {[%emt 00:00:03] [%clk 00:06:47]} Ba6 {[%emt 00:01:58] [%clk 00:05:22]} 28.
Rfe1 {[%emt 00:00:18] [%clk 00:06:38]} Rxd1+ {[%emt 00:00:02] [%clk 00:05:30]}
29. Rxd1 {[%emt 00:00:02] [%clk 00:06:46]} Be2 {[%emt 00:00:02] [%clk 00:05:39]}
30. Rc1 {[%emt 00:00:27] [%clk 00:06:28]} Bg5 {[%emt 00:00:10] [%clk 00:05:40]}
31. Rh1 {[%emt 00:00:13] [%clk 00:06:25]} e4 {[%emt 00:00:20] [%clk 00:05:30]}
32. Bh5 {[%emt 00:00:50] [%clk 00:05:44]} Bc4 {[%emt 00:00:29] [%clk 00:05:11]}
33. Be8 {[%emt 00:00:41] [%clk 00:05:14]} e3 {[%emt 00:00:14] [%clk 00:05:07]}
34. Nc1 {[%emt 00:00:23] [%clk 00:05:01]} Qd4 {[%emt 00:00:14] [%clk 00:05:02]}
35. Ba4 {[%emt 00:01:21] [%clk 00:03:50]} Bf6 {[%emt 00:00:03] [%clk 00:05:10]}
36. c3 {[%clk 00:03:59]} bxc3 {[%emt 00:00:03] [%clk 00:05:17]} 37. Bc2 {[%clk
00:04:08]} cxb2 {[%emt 00:00:04] [%clk 00:05:22]} 38. Nb3 {[%emt 00:00:01] [%clk
00:04:17]} Qc3 {[%emt 00:00:11] [%clk 00:05:21]} 39. Rd1 {[%emt 00:00:10] [%clk
00:04:18]} a4 {[%emt 00:01:05] [%clk 00:05:15]} 0-1

[Site "Europe Echecs"]